bitfinex-derivatives/quotes_SOLF0:USTF0_20240918
["timestamp","ask_amount","ask_price","bid_price","bid_amount"]
[1726670087446,22.64202636,128.22,128.19,9.7615]
[1726670087652,18.74242636,128.21,128.19,9.7615]
[1726670087852,3.8996,128.22,128.19,9.7615]
[1726670088053,3.8996,128.21,128.19,9.7615]
[1726670088449,18.82660983,128.27,128.19,9.7615]
[1726670088450,35.87650187,128.24,128.19,9.7615]
[1726670088647,35.87650187,128.23,128.19,2.7864]
[1726670088849,18.73982137,128.22,128.19,2.7864]
[1726670089052,22.63942137,128.21,128.19,2.7864]
[1726670089245,18.73982137,128.2,128.19,2.7864]
[1726670089455,3.8996,128.21,128.19,2.7864]
[1726670090546,3.8996,128.21,128.19,6.6866]
[1726670090945,21.03670465,128.22,128.19,6.6866]
[1726670091148,18.73982137,128.21,128.19,6.6866]
[1726670091348,18.73982137,128.2,128.19,6.6866]
[1726670091550,3.8995,128.22,128.19,6.6866]
[1726670091951,18.73982137,128.24,128.19,17.7664]
[1726670092259,17.13688969,128.23,128.19,17.7664]
[1726670092554,18.73982137,128.22,128.19,17.7664]
[1726670092949,3.8992,128.23,128.2,3.8999]
[1726670094250,35.8764444,128.23,128.19,21.6666]
[1726670094453,35.8764444,128.22,128.19,17.7664]
[1726670094652,18.73982137,128.21,128.19,17.7664]
[1726670094856,18.73982137,128.2,128.19,17.7664]
[1726670095057,337.0,128.28,128.19,17.7664]
[1726670095360,3.8986,128.25,128.22,3.8993]
[1726670095750,21.03593539,128.25,128.22,3.8993]
[1726670095959,17.13733539,128.24,128.22,3.8993]
[1726670096250,3.8986,128.25,128.22,3.8993]
[1726670096451,3.8987,128.24,128.21,18.8795]
[1726670096858,17.13733539,128.27,128.21,18.8795]
[1726670097053,17.13733539,128.26,128.2,17.8877]
[1726670097252,17.13733539,128.25,128.2,17.8877]
[1726670097454,3.8991,128.23,128.2,17.8877]
[1726670097655,3.8991,128.23,128.2,21.7874]
[1726670100058,3.8991,128.23,128.22,9.59]
[1726670100654,9.59,128.24,128.19,9.59]
[1726670100950,24.79483193,128.24,128.19,9.59]
[1726670101353,24.79483193,128.24,128.18,9.59]
[1726670101956,3.9001,128.2,128.18,13.4905]
[1726670102153,15.20483193,128.24,128.19,9.59]
[1726670102348,15.20483193,128.24,128.22,9.59]
[1726670102658,3.912737,128.26,128.15,9.1511]
[1726670102852,9.59,128.24,128.19,9.59]
[1726670103156,3.8998,128.21,128.2,9.59]
[1726670103357,15.20483193,128.23,128.2,9.59]
[1726670103558,15.20483193,128.24,128.21,9.59]
[1726670103756,3.8995,128.22,128.21,9.59]
[1726670104050,15.20483193,128.24,128.21,9.59]
[1726670104256,21.97817517,128.25,128.21,9.59]
[1726670104450,3.8993,128.22,128.21,9.59]
[1726670105549,3.8996,128.21,128.2,9.59]
[1726670106551,9.59,128.23,128.15,9.1511]
[1726670106749,9.59,128.2,128.15,9.1511]
[1726670106953,9.59,128.2,128.15,9.59]
[1726670107159,9.59,128.19,128.15,9.59]
[1726670107355,3.9011,128.16,128.15,9.59]
[1726670107853,3.9007,128.18,128.15,9.59]
[1726670108152,12.4955,128.22,128.17,9.59]
[1726670108352,3.8999,128.21,128.2,9.59]
[1726670109352,3.8999,128.2,128.19,9.59]
[1726670109558,9.59,128.21,128.12,2.9546]
[1726670109755,17.23522079,128.21,128.17,9.59]
[1726670109963,9.59,128.22,128.17,9.59]
[1726670110154,3.9004,128.19,128.17,9.59]
[1726670111055,3.9005,128.18,128.17,9.59]
[1726670111360,9.59,128.22,128.17,9.59]
[1726670111560,3.9005,128.18,128.17,9.59]
[1726670112160,9.59,128.22,128.17,9.59]
[1726670112557,42.03120993,128.22,128.17,9.59]
[1726670112756,9.59,128.23,128.19,9.59]
[1726670112962,42.03120865,128.23,128.19,9.59]
[1726670113262,32.44120865,128.22,128.19,9.59]
[1726670113462,17.23773218,128.22,128.19,9.59]
[1726670113665,9.59,128.23,128.19,9.59]
[1726670113962,3.9001,128.2,128.19,9.59]
[1726670117365,21.15406931,128.2,128.19,9.59]
[1726670117666,17.25396931,128.23,128.19,9.59]
[1726670117858,32.48571806,128.22,128.2,9.59]
[1726670118058,3.8996,128.22,128.2,9.59]
[1726670118265,32.51220409,128.24,128.12,2.9546]
[1726670118457,32.51220409,128.24,128.17,9.59]
[1726670118458,9.59,128.22,128.17,9.59]
[1726670118661,32.51220409,128.23,128.19,9.59]
[1726670118861,32.51220409,128.22,128.12,2.9546]
[1726670119071,32.51220409,128.22,128.21,9.59]
[1726670119370,32.51188087,128.22,128.21,13.4896]
[1726670119558,9.59,128.28,128.21,9.59]
[1726670119763,3.96057767,128.28,128.24,9.59]
[1726670119969,24.82585562,128.28,128.23,9.59]
[1726670120171,24.82585562,128.27,128.22,9.59]
[1726670120365,3.899,128.23,128.21,9.59]
[1726670120870,3.8993,128.22,128.21,9.59]
[1726670121559,3.8991,128.23,128.21,9.59]
[1726670122169,3.8991,128.23,128.22,9.59]
[1726670122567,24.82585562,128.27,128.22,9.59]
[1726670122971,15.23585562,128.27,128.23,9.59]
[1726670123267,15.23585562,128.27,128.25,9.59]
[1726670123466,15.23585562,128.27,128.26,9.59]
[1726670124762,19.13375562,128.27,128.26,9.59]
[1726670124962,15.23585562,128.27,128.25,9.59]
[1726670125475,337.0,128.28,128.25,9.59]
[1726670125667,15.26334834,128.27,128.25,9.59]
[1726670125873,3.8982,128.26,128.25,9.59]
[1726670126269,24.85334834,128.29,128.22,3.8992]
[1726670126471,9.59,128.26,128.22,9.59]
[1726670126671,9.59,128.25,128.22,9.59]
[1726670126877,3.899,128.24,128.22,9.59]
[1726670127775,9.59,128.26,128.22,9.59]
[1726670128074,15.26334834,128.27,128.21,18.8794]
[1726670128276,15.26334834,128.28,128.21,18.8794]
[1726670128574,34.18660909,128.29,128.21,18.8794]
[1726670128770,3.8981,128.26,128.21,18.8794]
[1726670128976,15.26334834,128.28,128.21,18.8794]
[1726670129976,31.86974538,128.28,128.21,18.8794]
[1726670130177,3.8989,128.24,128.21,18.8794]
[1726670130980,18.92326075,128.29,128.19,8.7543]
[1726670130981,15.26313077,128.25,128.19,23.7343]
[1726670131179,15.26313077,128.26,128.19,23.7343]
[1726670131373,15.26313077,128.26,128.13,14.98]
[1726670131374,14.98,128.24,128.15,14.98]
[1726670131579,7.7957,128.27,128.15,14.98]
[1726670131580,3.056,128.23,128.15,14.98]
[1726670131772,18.036,128.23,128.15,14.98]
[1726670131974,3.9008,128.17,128.15,14.98]
[1726670132277,19.0921459,128.22,128.15,14.98]
[1726670132776,19.0921459,128.22,128.15,18.8812]
[1726670132969,19.0921459,128.22,128.15,14.98]
[1726670133170,3.9004,128.19,128.16,3.9011]
[1726670133782,3.9002,128.19,128.16,14.98]
[1726670134176,35.68555162,128.22,128.16,14.98]
[1726670134370,3.9001,128.2,128.17,3.9007]
[1726670134578,19.15790094,128.2,128.17,3.9007]
[1726670134775,3.9001,128.2,128.17,3.9007]
[1726670134969,3.9003,128.19,128.17,3.9007]
[1726670136170,3.99648711,128.22,128.16,14.98]
[1726670136377,18.31101484,128.23,128.16,14.98]
[1726670136577,14.98,128.21,128.13,8.8351]
[1726670136784,3.9016,128.15,128.13,8.8351]
[1726670137276,3.9017,128.14,128.13,3.0458]
[1726670137580,46.82839643,128.19,128.11,14.98]
[1726670137775,31.84839643,128.18,128.11,14.98]
[1726670137981,15.25501484,128.17,128.11,14.98]
[1726670138183,15.25501484,128.17,128.11,18.8824]
[1726670138871,3.9017,128.15,128.12,3.9023]
[1726670139080,3.9017,128.15,128.12,18.8823]
[1726670139891,3.9012,128.16,128.14,14.98]
[1726670140070,9.71346174,128.2,128.15,14.98]
[1726670140472,24.96125619,128.2,128.15,14.98]
[1726670140678,15.24779445,128.19,128.14,14.98]
[1726670141180,3.9011,128.16,128.14,14.98]
[1726670143479,3.9014,128.15,128.14,14.98]
[1726670144386,46.79836092,128.19,128.11,14.98]
[1726670144582,31.81836092,128.18,128.11,14.98]
[1726670144880,15.24206535,128.17,128.11,14.98]
[1726670145086,31.81836092,128.17,128.11,14.98]
[1726670145279,3.9022,128.13,128.11,14.98]
[1726670146885,3.9022,128.13,128.11,18.8826]
[1726670147091,3.9022,128.13,128.11,14.98]
[1726670148189,30.20887994,128.17,128.08,2.8845]
[1726670148383,14.98,128.15,128.06,14.98]
[1726670148693,3.9034,128.09,128.06,14.98]
[1726670149286,2.9538,128.13,128.08,14.98]
[1726670149790,3.9033,128.09,128.08,14.98]
[1726670149984,2.9538,128.13,128.08,14.98]
[1726670150285,3.9032,128.1,128.08,14.98]
[1726670150490,2.9538,128.13,128.09,14.98]
[1726670150786,337.0,128.14,128.11,14.98]
[1726670151390,337.0,128.14,128.1,14.98]
[1726670151787,337.0,128.14,128.05,5.7267]
[1726670151788,3.903,128.1,128.08,14.98]
[1726670151984,340.0044,128.14,128.08,14.98]
[1726670152191,340.0044,128.14,128.07,14.98]
[1726670152192,3.9036,128.08,128.07,14.98]
[1726670153193,2.9293,128.12,128.05,14.98]
[1726670153387,339.9293,128.12,128.05,14.98]
[1726670153582,3.9045,128.05,128.03,14.98]
[1726670153787,3.84414062,128.08,128.03,14.98]
[1726670153988,339.9293,128.12,128.05,14.98]
[1726670154990,3.9042,128.06,128.05,14.98]
[1726670155397,339.9293,128.12,128.05,14.98]
[1726670155686,3.9041,128.07,128.05,14.98]
[1726670155889,3.87734375,128.07,128.04,14.98]
[1726670156091,337.0,128.11,128.04,14.98]
[1726670156894,3.9041,128.07,128.04,14.98]
[1726670157091,3.84808342,128.07,128.04,14.98]
[1726670157291,3.9041,128.07,128.04,14.98]
[1726670157494,7.72483386,128.07,128.04,14.98]
[1726670157797,3.9038,128.08,128.05,14.98]
[1726670158596,3.9038,128.08,128.07,14.98]
[1726670158795,3.9034,128.09,128.07,14.98]
[1726670159193,2.9293,128.12,128.07,14.98]
[1726670159597,3.9035,128.09,128.07,14.98]
[1726670159790,2.9293,128.12,128.07,14.98]
[1726670160299,3.9035,128.09,128.07,14.98]
[1726670160491,2.9293,128.12,128.07,14.98]
[1726670160895,3.9032,128.1,128.07,18.8838]
[1726670161097,2.9293,128.12,128.07,14.98]
[1726670161691,3.9032,128.1,128.07,14.98]
[1726670162098,3.9032,128.1,128.07,18.8837]
[1726670163392,3.9034,128.09,128.07,14.98]
[1726670164103,3.9031,128.1,128.07,18.8838]
[1726670164798,3.9033,128.09,128.07,18.8838]
[1726670164986,2.9293,128.12,128.07,18.8838]
[1726670165394,3.9031,128.1,128.07,18.8838]
[1726670166597,3.9033,128.09,128.07,18.8838]
[1726670167298,3.9031,128.1,128.07,18.8838]
[1726670167496,3.9031,128.1,128.07,14.98]
[1726670167891,2.9293,128.12,128.07,14.98]
[1726670167892,3.9033,128.09,128.07,14.98]
[1726670169604,3.9036,128.08,128.07,14.98]
[1726670169899,2.9293,128.12,128.07,14.98]
[1726670170198,3.9034,128.09,128.07,14.98]
[1726670171900,12.5293,128.12,128.07,9.6]
[1726670172288,3.903,128.1,128.09,9.6]
[1726670172891,3.9028,128.11,128.09,9.6]
[1726670173096,3.9028,128.11,128.1,9.6]
[1726670173305,3.0044,128.14,128.1,9.6]
[1726670173603,3.9027,128.11,128.1,9.6]
[1726670175596,3.9026,128.12,128.1,9.6]
[1726670175798,3.0044,128.14,128.12,9.6]
[1726670175992,3.0044,128.14,128.05,3.97163397]
[1726670175993,3.0044,128.14,128.11,9.6]
[1726670176301,3.9026,128.12,128.11,9.6]
[1726670176701,3.903,128.1,128.09,9.6]
[1726670176901,9.6,128.13,128.08,9.6]
[1726670177501,3.9031,128.1,128.08,9.6]
[1726670177801,3.9031,128.1,128.09,9.6]
[1726670179798,12.6044,128.14,128.09,9.6]
[1726670179799,3.9028,128.11,128.09,9.6]
[1726670180000,3.9028,128.11,128.1,9.6]
[1726670180401,340.0044,128.14,128.1,9.6]
[1726670180695,6.88128053,128.15,128.12,9.6]
[1726670180901,3.9019,128.14,128.13,9.6]
[1726670181895,3.9021,128.13,128.12,9.6]
[1726670184600,3.9018,128.14,128.12,9.6]
[1726670184803,3.9018,128.14,128.13,9.6]
[1726670185302,3.9015,128.15,128.13,9.6]
[1726670186102,3.9013,128.16,128.14,9.6]
[1726670186507,3.90924002,128.18,128.14,9.6]
[1726670186704,3.9011,128.16,128.15,9.6]
[1726670186905,3.90924002,128.18,128.15,9.6]
[1726670187308,3.901,128.17,128.15,9.6]
[1726670188816,3.9011,128.16,128.15,9.6]
[1726670189019,3.90924002,128.18,128.14,9.6]
[1726670189210,12.6788,128.19,128.07,2.9722]
[1726670189511,9.6,128.18,128.13,9.6]
[1726670189712,3.85717632,128.17,128.13,9.6]
[1726670189908,3.9017,128.14,128.13,9.6]
[1726670190113,3.90402936,128.16,128.12,9.6]
[1726670190314,9.6,128.17,128.12,9.6]
[1726670190709,9.6,128.14,128.07,2.9722]
[1726670190907,9.6,128.14,128.1,9.6]
[1726670191306,2.68,128.16,128.12,9.6]
[1726670191911,3.902,128.14,128.11,3.9025]
[1726670192113,3.902,128.14,128.1,15.01]
[1726670192311,3.902,128.14,128.11,3.9024]
[1726670194110,3.8297865,128.16,128.09,15.01]
[1726670194313,15.01,128.17,128.09,15.01]
[1726670194519,3.903,128.1,128.09,15.01]
[1726670194706,15.01,128.15,128.07,17.9822]
[1726670194907,2.5935,128.14,128.07,17.9822]
[1726670195119,3.9032,128.1,128.07,21.8861]
[1726670196409,3.9032,128.1,128.08,3.9035]
[1726670196814,3.9032,128.1,128.07,17.9822]
[1726670197019,3.9033,128.09,128.07,21.8859]
[1726670197219,2.5935,128.14,128.07,21.8859]
[1726670197622,3.9031,128.1,128.07,21.8859]
[1726670198321,3.9031,128.1,128.08,3.9035]
[1726670198714,3.9028,128.11,128.08,3.9035]
[1726670198914,2.5935,128.14,128.09,15.01]
[1726670199318,3.9026,128.12,128.09,15.01]
[1726670199518,337.0,128.16,128.11,18.9125]
[1726670199714,337.0,128.16,128.13,15.01]
[1726670200213,337.0,128.16,128.11,15.01]
[1726670200410,6.75615457,128.17,128.09,18.913]
[1726670200610,15.01,128.16,128.08,15.01]
[1726670200814,32.90535851,128.16,128.08,15.01]
[1726670201027,3.9028,128.11,128.08,18.9135]
[1726670202029,15.19985851,128.15,128.08,15.01]
[1726670202718,3.9026,128.12,128.09,3.9032]
[1726670203719,3.9027,128.11,128.08,18.9134]
[1726670206523,15.20142432,128.13,128.08,15.01]
[1726670206723,31.7366354,128.15,128.08,15.01]
[1726670207025,15.20142432,128.14,128.08,15.01]
[1726670207225,15.20142432,128.14,128.06,15.01]
[1726670207418,3.9034,128.09,128.06,18.9142]
[1726670207617,15.20142432,128.13,128.06,15.01]
[1726670208023,15.20142432,128.13,128.07,3.9037]
[1726670208322,15.20142432,128.13,128.08,15.01]
[1726670208713,3.9028,128.11,128.08,18.9134]
[1726670209324,3.903,128.1,128.08,18.9134]
[1726670209819,15.20142432,128.13,128.07,3.9037]
[1726670210126,30.21142432,128.13,128.02,8.0468]
[1726670210324,19.2798655,128.12,128.04,15.01]
[1726670210520,367.21142432,128.11,128.02,17.6833]
[1726670210722,15.01,128.09,128.02,2.6733]
[1726670211019,18.86078125,128.09,128.02,2.6733]
[1726670211226,18.86078125,128.09,128.01,15.01]
[1726670211227,21.59858125,128.09,128.01,15.01]
[1726670211622,15.19603319,128.08,128.01,15.01]
[1726670211824,3.9046,128.05,128.01,18.9157]
[1726670212022,15.19603319,128.08,128.02,15.01]
[1726670212223,21.78461444,128.09,128.02,15.01]
[1726670213024,3.9044,128.06,128.02,18.9152]
[1726670213624,21.78461444,128.09,128.02,15.01]
[1726670213625,3.9045,128.05,128.02,15.01]
[1726670215030,36.79461444,128.09,128.01,15.01]
[1726670215227,352.19603319,128.08,128.01,15.01]
[1726670215423,337.0,128.08,128.01,15.01]
[1726670215633,2.6161,128.07,128.01,15.01]
[1726670217024,3.9046,128.05,128.01,18.9155]
[1726670218429,3.9048,128.04,128.01,18.9155]
[1726670218630,2.6161,128.07,128.01,15.01]
[1726670219033,3.905,128.04,128.01,15.01]
[1726670219328,3.905,128.04,128.01,18.9156]
[1726670220318,3.9047,128.05,128.01,18.9156]
[1726670220523,3.9047,128.05,128.03,15.01]
[1726670221629,3.9048,128.04,128.03,15.01]
[1726670221824,21.77590546,128.09,128.03,15.01]
[1726670222331,3.9046,128.05,128.03,15.01]
[1726670222627,21.77590546,128.09,128.03,15.01]
[1726670222827,3.9041,128.07,128.04,3.9047]
[1726670223022,21.77590546,128.09,128.03,15.01]
[1726670223023,6.58858125,128.09,128.03,15.01]
[1726670223230,21.78607597,128.09,128.03,15.01]
[1726670223627,6.58858125,128.09,127.99,2.738]
[1726670223829,15.01,128.07,127.99,2.738]
[1726670224229,3.906,128.0,127.99,2.738]
[1726670224734,3.9055,128.02,127.98,24.201]
[1726670225532,17.61081326,128.06,127.98,24.201]
[1726670225835,2.4167,128.06,127.98,24.201]
[1726670226036,17.61637579,128.06,127.98,20.2944]
[1726670226333,3.9061,128.0,127.98,17.6009]
[1726670226533,3.9061,128.0,127.98,15.01]
[1726670226830,339.3377,128.05,127.96,2.4052]
[1726670227023,339.3377,128.05,127.95,17.3746]
[1726670227024,15.01,128.03,127.95,17.3746]
[1726670227223,19.00897467,128.03,127.95,17.3746]
[1726670227933,19.00897467,128.03,127.95,15.01]
[1726670228737,3.99897467,128.03,127.95,15.01]
[1726670229033,15.01,128.02,127.95,15.01]
[1726670229236,3.96590253,128.02,127.95,15.01]
[1726670229428,3.9066,127.99,127.95,15.01]
[1726670229624,3.98114848,128.0,127.95,15.01]
[1726670229829,352.19226867,128.03,127.95,15.01]
[1726670230135,337.0,128.03,127.95,15.01]
[1726670230333,340.91860098,128.03,127.95,15.01]
[1726670230634,3.9066,127.98,127.95,15.01]
[1726670231138,3.9065,127.99,127.95,18.9175]
[1726670232134,3.9059,128.01,127.97,15.01]
[1726670232542,3.9059,128.01,127.97,18.9167]
[1726670234033,3.9061,128.0,127.97,18.9167]
[1726670234232,340.91860098,128.03,127.97,15.01]
[1726670234430,15.01,128.02,127.94,15.01]
[1726670235233,17.4818,128.01,127.93,4.7686]
[1726670235637,3.9064,127.99,127.93,4.7686]
[1726670235941,17.4818,128.01,127.94,3.9077]
[1726670236336,3.9071,127.97,127.93,8.6767]
[1726670236642,3.9071,127.97,127.93,4.7686]
[1726670236840,3.9071,127.97,127.94,3.9078]
[1726670237538,3.9071,127.97,127.93,4.7686]
[1726670238444,3.9071,127.97,127.94,3.9078]
[1726670239236,3.9072,127.96,127.93,8.6766]
[1726670239847,3.9071,127.97,127.94,3.9078]
[1726670240246,2.4718,128.01,127.94,15.01]
[1726670240546,3.9069,127.98,127.95,3.9075]
[1726670240747,2.4718,128.01,127.94,15.01]
[1726670240948,3.9071,127.97,127.94,18.9177]
[1726670241546,3.9074,127.96,127.94,15.01]
[1726670243947,3.94627408,127.99,127.93,2.4052]
[1726670244148,354.4818,128.01,127.93,2.4052]
[1726670244345,3.9073,127.96,127.93,6.3131]
[1726670245949,3.99225715,127.99,127.93,2.4052]
[1726670246144,339.4718,128.01,127.94,15.01]
[1726670246344,337.0,128.01,127.96,15.01]
[1726670246745,3.9062,128.0,127.97,3.9068]
[1726670247850,18.88767871,128.03,127.96,15.01]
[1726670248156,15.01,128.03,127.96,15.01]
[1726670248554,18.92156462,128.03,127.96,15.01]
[1726670249252,3.9062,128.0,127.97,3.9069]
[1726670249555,3.9062,128.0,127.96,15.01]
[1726670249755,3.9059,128.01,127.96,15.01]
[1726670250452,3.906,128.0,127.97,3.9067]
[1726670253258,3.9063,127.99,127.96,18.9171]
[1726670253454,15.01,128.03,127.96,3.9071]
[1726670253653,18.8336989,128.03,127.94,19.7291]
[1726670253856,18.8336989,128.03,127.93,2.4052]
[1726670253857,15.01,128.01,127.93,2.4052]
[1726670254352,3.9071,127.97,127.94,3.9078]
[1726670255058,3.9071,127.97,127.94,15.01]
[1726670255461,3.9067,127.98,127.95,3.9075]
[1726670256762,3.907,127.97,127.94,18.9177]
[1726670257352,3.907,127.97,127.95,3.9075]
[1726670257557,3.9068,127.98,127.96,15.01]
[1726670257758,3.9068,127.98,127.94,15.01]
[1726670258363,3.9068,127.98,127.95,3.9074]
[1726670260556,337.0,128.03,127.96,15.01]
[1726670260957,3.9061,128.0,127.96,15.01]
[1726670261159,337.0,128.03,127.96,15.01]
[1726670261959,3.9062,128.0,127.96,18.917]
[1726670262265,337.0,128.03,127.98,15.01]
[1726670263368,337.0,128.03,128.0,3.9057]
[1726670263968,337.0,128.03,128.01,3.9056]
[1726670264173,337.0,128.03,127.99,15.01]
[1726670265365,3.93730946,128.05,127.98,17.4498]
[1726670265575,15.01,128.05,127.98,17.4498]
[1726670265763,3.93340107,128.04,127.98,17.4498]
[1726670266272,3.93340107,128.04,127.98,21.3564]
[1726670266563,3.9057,128.02,127.98,21.3564]
[1726670268475,3.9057,128.02,127.99,3.9063]
[1726670268671,3.9057,128.02,127.98,17.4498]
[1726670268871,3.93340107,128.04,127.96,15.01]
[1726670269071,7.0904,128.04,127.97,3.9068]
[1726670269267,3.9059,128.01,127.97,3.9068]
[1726670269475,3.8453784,128.03,127.96,15.01]
[1726670269670,7.0904,128.04,127.99,3.9063]
[1726670270372,3.9052,128.03,128.0,3.906]
[1726670272273,3.9052,128.03,127.99,3.9062]
[1726670273173,3.9052,128.03,128.0,3.906]
[1726670275580,3.9055,128.02,127.99,3.9062]
[1726670275780,352.01,128.07,127.98,15.01]
[1726670275982,352.01,128.07,127.98,18.9164]
[1726670275983,3.9056,128.02,127.98,18.9164]
[1726670277273,3.9052,128.03,127.98,15.01]
[1726670277476,15.01,128.07,128.0,15.01]
[1726670277687,15.01,128.07,128.01,3.9056]
[1726670277688,15.22527681,128.07,128.01,3.9056]
[1726670277985,337.0,128.08,128.0,15.01]
[1726670278293,3.9043,128.06,128.01,15.01]
[1726670278579,7.1826,128.09,128.01,15.01]
[1726670278786,7.1826,128.09,128.03,3.9049]
[1726670279080,3.9042,128.07,128.03,3.9049]
[1726670279277,22.40642469,128.09,128.05,3.9044]
[1726670279482,26.30982469,128.09,128.05,3.9044]
[1726670279673,20.08682469,128.09,128.05,3.9044]
[1726670279877,17.60632469,128.09,128.06,3.904]
[1726670280681,21.50962469,128.09,128.05,3.9043]
[1726670281178,17.60632469,128.09,128.03,15.01]
[1726670281382,2.3825,128.09,128.03,15.01]
[1726670282086,3.9038,128.08,128.04,3.9048]
[1726670283282,2.3825,128.09,128.05,15.01]
[1726670283678,6.286,128.09,128.05,18.9144]
[1726670283974,2.3825,128.09,128.05,18.9144]
[1726670284685,2.3825,128.09,128.03,15.01]
[1726670285278,3.904,128.07,128.03,18.9149]
[1726670285474,2.3825,128.09,128.01,15.01]
[1726670285680,2.3825,128.09,128.01,18.9156]
[1726670285885,15.01,128.08,128.01,15.01]
[1726670286383,3.9051,128.03,128.0,3.9059]
[1726670286681,3.9051,128.03,127.99,18.9162]
[1726670287278,3.9051,128.03,127.95,157.8537]
[1726670287279,3.9054,128.02,127.98,18.9165]
[1726670287480,15.01,128.05,127.98,18.9165]
[1726670287677,3.82084823,128.04,127.98,15.01]
[1726670287983,3.82084823,128.04,127.98,18.9166]
[1726670288188,17.9432,128.07,127.98,15.01]
[1726670288389,15.2239801,128.06,127.98,15.01]
[1726670288589,3.905,128.04,128.0,3.906]
[1726670288791,15.2239801,128.06,127.99,15.01]
[1726670288985,18.1571801,128.07,127.99,15.01]
[1726670290086,3.9048,128.04,128.01,3.9057]
[1726670290687,3.9046,128.05,128.01,3.9057]
[1726670291091,18.1571801,128.07,128.03,15.01]
[1726670291092,22.0611801,128.07,128.03,15.01]
[1726670291386,3.904,128.07,128.03,15.01]
[1726670291587,3.904,128.07,128.03,18.9151]
[1726670291897,3.9042,128.06,128.02,15.01]
[1726670292284,3.9042,128.06,128.02,18.9152]
[1726670293592,3.9042,128.06,128.0,1.4018]
[1726670293593,15.23665376,128.08,128.0,20.3177]
[1726670294093,15.23665376,128.08,128.0,16.4118]
[1726670294290,3.9045,128.05,128.01,3.9055]
[1726670294895,3.9045,128.05,128.0,16.4118]
[1726670295789,2.3825,128.09,128.03,15.01]
[1726670295990,2.3825,128.09,128.01,15.01]
[1726670296188,2.3825,128.09,128.03,15.01]
[1726670296992,3.904,128.07,128.04,3.9046]
[1726670297590,3.9042,128.06,128.03,3.905]
[1726670297796,3.9042,128.06,128.02,15.01]
[1726670298494,3.9042,128.06,128.02,18.9152]
[1726670298690,3.9042,128.06,128.02,15.01]
[1726670299097,3.9042,128.06,128.03,3.9049]
[1726670299302,3.9042,128.06,128.02,15.01]
[1726670299598,17.3925,128.09,128.0,16.4118]
[1726670299809,15.24050756,128.08,128.0,15.01]
[1726670300104,3.9053,128.03,128.0,15.01]
[1726670300292,3.9053,128.03,127.99,3.9061]
[1726670300494,3.905,128.04,127.98,15.01]
[1726670300698,2.9774,128.06,128.01,3.9056]
[1726670301002,3.9046,128.05,128.01,3.9056]
[1726670301199,2.9774,128.06,128.0,15.01]
[1726670301601,6.8817,128.06,128.02,3.9052]
[1726670302201,2.9774,128.06,128.02,3.9052]
[1726670302904,3.84594958,128.05,128.0,15.01]
[1726670303099,3.84594958,128.05,127.98,15.01]
[1726670303501,3.84594958,128.05,127.99,3.9061]
[1726670303710,3.84594958,128.05,127.98,15.01]
[1726670304203,3.9053,128.03,127.99,3.9063]
[1726670306007,3.9048,128.04,127.98,15.01]